[Event "*** Titled Tuesday Blitz"]
[Site "Chess.com"]
[Date "2020.12.01"]
[Round "2"]
[White "SergeyShtyka"]
[Black "Soltan49"]
[Result "1-0"]
[WhiteElo "2428"]
[BlackElo "2211"]
[TimeControl "180+1"]
[EndTime "10:16:50 PST"]
[Termination "SergeyShtyka won on time"]

1. e4 {[%clk 0:02:58]} 1... c6 {[%clk 0:02:59.8]} 2. Nf3 {[%clk 0:02:57.6]} 2...
d5 {[%clk 0:03:00.1]} 3. Nc3 {[%clk 0:02:57.3]} 3... dxe4 {[%clk 0:02:59.1]} 4.
Nxe4 {[%clk 0:02:57.4]} 4... Nf6 {[%clk 0:03:00]} 5. Nxf6+ {[%clk 0:02:57.3]}
5... gxf6 {[%clk 0:02:59.3]} 6. g3 {[%clk 0:02:57.9]} 6... Bg4 {[%clk 0:02:52]}
7. Bg2 {[%clk 0:02:57]} 7... Nd7 {[%clk 0:02:52.2]} 8. O-O {[%clk 0:02:56.5]}
8... e5 {[%clk 0:02:41.3]} 9. d4 {[%clk 0:02:48.2]} 9... Qc7 {[%clk 0:02:40.9]}
10. h3 {[%clk 0:02:34.2]} 10... Bh5 {[%clk 0:02:29]} 11. Qd3 {[%clk 0:02:27.8]}
11... O-O-O {[%clk 0:02:25.7]} 12. Be3 {[%clk 0:02:15.9]} 12... Kb8 {[%clk
0:02:06.9]} 13. Nh4 {[%clk 0:01:57.7]} 13... Bg6 {[%clk 0:01:34.1]} 14. Nxg6
{[%clk 0:01:51.1]} 14... hxg6 {[%clk 0:01:34.1]} 15. d5 {[%clk 0:01:45.7]} 15...
Nb6 {[%clk 0:01:10.9]} 16. c4 {[%clk 0:01:40.1]} 16... cxd5 {[%clk 0:00:18.2]}
17. cxd5 {[%clk 0:01:39.5]} 17... Bh6 {[%clk 0:00:18.6]} 18. Rac1 {[%clk
0:01:34.3]} 18... Qd6 {[%clk 0:00:08.9]} 19. Bc5 {[%clk 0:01:33.5]} 19... Qd7
{[%clk 0:00:09.3]} 20. Bxb6 {[%clk 0:01:31.2]} 20... axb6 {[%clk 0:00:10.2]} 21.
Rc4 {[%clk 0:01:25.8]} 21... Bf8 {[%clk 0:00:07.2]} 22. Rfc1 {[%clk 0:01:23.4]}
22... Bd6 {[%clk 0:00:07]} 23. h4 {[%clk 0:01:07.3]} 23... Rc8 {[%clk 0:00:06]}
24. a3 {[%clk 0:01:03.8]} 24... Rxc4 {[%clk 0:00:05.8]} 25. Rxc4 {[%clk
0:01:03.3]} 25... Rc8 {[%clk 0:00:06.7]} 26. b4 {[%clk 0:01:03.3]} 26... Rxc4
{[%clk 0:00:05.5]} 27. Qxc4 {[%clk 0:01:04.2]} 27... Qc8 {[%clk 0:00:06.4]} 28.
Qd3 {[%clk 0:00:47.9]} 28... Qc1+ {[%clk 0:00:05.1]} 29. Kh2 {[%clk 0:00:48.4]}
29... Qxa3 {[%clk 0:00:05.5]} 30. Qxa3 {[%clk 0:00:47.2]} 1-0

[Event "*** Titled Tuesday Blitz"]
[Site "Chess.com"]
[Date "2020.12.01"]
[Round "2"]
[White "Qvalda"]
[Black "Legendinunknown"]
[Result "0-1"]
[WhiteElo "2442"]
[BlackElo "2670"]
[TimeControl "180+1"]
[EndTime "10:16:51 PST"]
[Termination "Legendinunknown won on time"]

1. e4 {[%clk 0:03:00.9]} 1... c6 {[%clk 0:02:59.2]} 2. Bc4 {[%clk 0:02:59.2]}
2... d5 {[%clk 0:02:58.3]} 3. Bb3 {[%clk 0:02:59.2]} 3... g6 {[%clk 0:02:53.4]}
4. d4 {[%clk 0:02:57.4]} 4... Bg7 {[%clk 0:02:53]} 5. exd5 {[%clk 0:02:41]} 5...
cxd5 {[%clk 0:02:52.7]} 6. Nc3 {[%clk 0:02:41.3]} 6... e6 {[%clk 0:02:50.5]} 7.
Nf3 {[%clk 0:02:38]} 7... Ne7 {[%clk 0:02:50]} 8. O-O {[%clk 0:02:37.2]} 8...
O-O {[%clk 0:02:49.4]} 9. Bf4 {[%clk 0:02:36.2]} 9... a6 {[%clk 0:02:45.2]} 10.
a4 {[%clk 0:02:31.5]} 10... Nbc6 {[%clk 0:02:44.6]} 11. Re1 {[%clk 0:02:30.5]}
11... Nf5 {[%clk 0:02:44.3]} 12. Ne2 {[%clk 0:02:25]} 12... Na5 {[%clk
0:02:43.7]} 13. Ba2 {[%clk 0:02:23.8]} 13... Nd6 {[%clk 0:02:43.2]} 14. h3
{[%clk 0:02:07]} 14... b5 {[%clk 0:02:40.7]} 15. axb5 {[%clk 0:02:02.9]} 15...
axb5 {[%clk 0:02:41.6]} 16. Bb1 {[%clk 0:01:59.8]} 16... Bb7 {[%clk 0:02:39.1]}
17. c3 {[%clk 0:01:58.5]} 17... Ne4 {[%clk 0:02:24.6]} 18. Ng3 {[%clk
0:01:51.9]} 18... f5 {[%clk 0:02:19.9]} 19. Ne5 {[%clk 0:01:44.4]} 19... Nc4
{[%clk 0:02:18.6]} 20. Rxa8 {[%clk 0:01:43.1]} 20... Bxa8 {[%clk 0:02:16.8]} 21.
Qc1 {[%clk 0:01:39.9]} 21... Nxe5 {[%clk 0:02:13.8]} 22. Bxe5 {[%clk 0:01:38.2]}
22... Bxe5 {[%clk 0:02:13.3]} 23. dxe5 {[%clk 0:01:38.1]} 23... Nxg3 {[%clk
0:02:12.8]} 24. fxg3 {[%clk 0:01:39]} 24... d4 {[%clk 0:02:12.5]} 25. Rd1 {[%clk
0:01:35.1]} 25... Qd5 {[%clk 0:02:12]} 26. Qc2 {[%clk 0:01:15.3]} 26... Qxe5
{[%clk 0:02:10.3]} 27. Rxd4 {[%clk 0:00:55.1]} 27... Qxg3 {[%clk 0:02:08]} 28.
Qf2 {[%clk 0:00:55.2]} 28... Qe5 {[%clk 0:01:54.2]} 29. Rd7 {[%clk 0:00:48.8]}
29... Bd5 {[%clk 0:01:51.6]} 30. Qd4 {[%clk 0:00:37.7]} 30... Qxd4+ {[%clk
0:01:49.6]} 31. cxd4 {[%clk 0:00:38.6]} 31... Rc8 {[%clk 0:01:50.1]} 32. Bd3
{[%clk 0:00:37.1]} 32... b4 {[%clk 0:01:49.2]} 33. Kf2 {[%clk 0:00:20.4]} 33...
Rc1 {[%clk 0:01:48.4]} 34. Ke3 {[%clk 0:00:16.2]} 34... Bxg2 {[%clk 0:01:44.7]}
35. Kf4 {[%clk 0:00:15.9]} 35... Rd1 {[%clk 0:01:29.7]} 36. Bc4 {[%clk
0:00:06.3]} 36... Bd5 {[%clk 0:01:26.9]} 37. Bxd5 {[%clk 0:00:06.3]} 37... Rxd4+
{[%clk 0:01:24.8]} 38. Kg5 {[%clk 0:00:02.2]} 38... Rxd5 {[%clk 0:01:24.3]} 39.
Rb7 {[%clk 0:00:02.5]} 39... f4+ {[%clk 0:01:18.4]} 40. Kf6 {[%clk 0:00:01.8]}
40... Rf5+ {[%clk 0:01:18.2]} 41. Kxe6 {[%clk 0:00:02.4]} 41... f3 {[%clk
0:01:18.4]} 42. Rb8+ {[%clk 0:00:01.6]} 42... Kg7 {[%clk 0:01:18.4]} 0-1

[Event "*** Titled Tuesday Blitz"]
[Site "Chess.com"]
[Date "2020.12.01"]
[Round "2"]
[White "Slovak_fighter2000"]
[Black "bylavochka"]
[Result "1-0"]
[WhiteElo "2530"]
[BlackElo "2185"]
[TimeControl "180+1"]
[EndTime "10:16:53 PST"]
[Termination "Slovak_fighter2000 won by checkmate"]

1. d4 {[%clk 0:02:58.2]} 1... Nf6 {[%clk 0:02:59.5]} 2. c4 {[%clk 0:02:57.4]}
2... e6 {[%clk 0:02:59.9]} 3. Nf3 {[%clk 0:02:56.4]} 3... d5 {[%clk 0:03:00.3]}
4. Nc3 {[%clk 0:02:55.6]} 4... c6 {[%clk 0:03:00.6]} 5. e3 {[%clk 0:02:55.4]}
5... Qa5 {[%clk 0:02:59.3]} 6. Bd2 {[%clk 0:02:52.9]} 6... Qc7 {[%clk
0:02:44.1]} 7. Rc1 {[%clk 0:02:51.8]} 7... dxc4 {[%clk 0:02:42.7]} 8. Bxc4
{[%clk 0:02:51]} 8... Nbd7 {[%clk 0:02:43]} 9. O-O {[%clk 0:02:49.7]} 9... Be7
{[%clk 0:02:42.3]} 10. Qe2 {[%clk 0:02:47.4]} 10... O-O {[%clk 0:02:42]} 11. e4
{[%clk 0:02:46.5]} 11... Nb6 {[%clk 0:02:34.3]} 12. Bb3 {[%clk 0:02:45.4]} 12...
Qb8 {[%clk 0:02:17.2]} 13. g3 {[%clk 0:02:13.7]} 13... a5 {[%clk 0:02:13.2]} 14.
Bf4 {[%clk 0:02:12.1]} 14... Qa7 {[%clk 0:02:13.3]} 15. d5 {[%clk 0:02:11.9]}
15... a4 {[%clk 0:01:31.2]} 16. Bc2 {[%clk 0:02:05]} 16... cxd5 {[%clk
0:01:29.4]} 17. Be3 {[%clk 0:02:01.7]} 17... Qa5 {[%clk 0:00:47.6]} 18. Bxb6
{[%clk 0:01:58.6]} 18... Qxb6 {[%clk 0:00:48.5]} 19. exd5 {[%clk 0:01:59.4]}
19... Re8 {[%clk 0:00:41]} 20. Bxa4 {[%clk 0:01:50.1]} 20... Rd8 {[%clk
0:00:35.6]} 21. Rfd1 {[%clk 0:01:47.3]} 21... Bb4 {[%clk 0:00:26.8]} 22. Bb3
{[%clk 0:01:46]} 22... Bxc3 {[%clk 0:00:22]} 23. Rxc3 {[%clk 0:01:46.9]} 23...
exd5 {[%clk 0:00:21.8]} 24. Bxd5 {[%clk 0:01:37.4]} 24... Nxd5 {[%clk
0:00:19.4]} 25. Rxd5 {[%clk 0:01:36]} 25... Be6 {[%clk 0:00:19]} 26. Rxd8+
{[%clk 0:01:32.9]} 26... Rxd8 {[%clk 0:00:19.9]} 27. a3 {[%clk 0:01:31.2]} 27...
Qd6 {[%clk 0:00:16.4]} 28. Kg2 {[%clk 0:01:26.4]} 28... Qd7 {[%clk 0:00:16]} 29.
h4 {[%clk 0:01:18.5]} 29... Bh3+ {[%clk 0:00:14.4]} 30. Kh2 {[%clk 0:01:18.6]}
30... Bg4 {[%clk 0:00:13.7]} 31. Rc4 {[%clk 0:01:14.4]} 31... Re8 {[%clk
0:00:13.5]} 32. Re4 {[%clk 0:01:12.2]} 32... Rd8 {[%clk 0:00:10.9]} 33. Qe3
{[%clk 0:01:08.7]} 33... Bf5 {[%clk 0:00:10.9]} 34. Rd4 {[%clk 0:01:08]} 34...
Qc8 {[%clk 0:00:08]} 35. Rxd8+ {[%clk 0:01:06.4]} 35... Qxd8 {[%clk 0:00:08.9]}
36. Qd4 {[%clk 0:01:06.2]} 36... Qc8 {[%clk 0:00:05.9]} 37. Ne5 {[%clk
0:01:05.2]} 37... Be6 {[%clk 0:00:05.9]} 38. b4 {[%clk 0:01:02.2]} 38... Qc2
{[%clk 0:00:05.5]} 39. Qd8# {[%clk 0:00:59.6]} 1-0

[Event "*** Titled Tuesday Blitz"]
[Site "Chess.com"]
[Date "2020.12.01"]
[Round "2"]
[White "Colombiano07"]
[Black "Bulldog167"]
[Result "0-1"]
[WhiteElo "2299"]
[BlackElo "2622"]
[TimeControl "180+1"]
[EndTime "10:16:55 PST"]
[Termination "Bulldog167 won by resignation"]

1. d4 {[%clk 0:03:00.7]} 1... g6 {[%clk 0:02:55]} 2. Nf3 {[%clk 0:03:01.2]} 2...
Bg7 {[%clk 0:02:55.2]} 3. e3 {[%clk 0:03:02.1]} 3... d6 {[%clk 0:02:55.4]} 4.
Be2 {[%clk 0:03:02.9]} 4... Nc6 {[%clk 0:02:55.3]} 5. O-O {[%clk 0:03:03.8]}
5... e5 {[%clk 0:02:55.6]} 6. b3 {[%clk 0:03:01.6]} 6... Nge7 {[%clk 0:02:52.8]}
7. Bb2 {[%clk 0:03:01.9]} 7... O-O {[%clk 0:02:51.8]} 8. c4 {[%clk 0:03:02.2]}
8... exd4 {[%clk 0:02:50.8]} 9. exd4 {[%clk 0:03:00.9]} 9... Bg4 {[%clk
0:02:50.7]} 10. Nbd2 {[%clk 0:02:53.3]} 10... Nf5 {[%clk 0:02:38.2]} 11. h3
{[%clk 0:02:49.9]} 11... Bxf3 {[%clk 0:02:36.2]} 12. Nxf3 {[%clk 0:02:50.8]}
12... Qf6 {[%clk 0:02:35.6]} 13. Re1 {[%clk 0:02:01.8]} 13... Ncxd4 {[%clk
0:02:29.6]} 14. Nxd4 {[%clk 0:02:02.7]} 14... Nxd4 {[%clk 0:02:29.4]} 15. Bxd4
{[%clk 0:02:03.6]} 15... Qxd4 {[%clk 0:02:29.8]} 16. Qxd4 {[%clk 0:02:03.8]}
16... Bxd4 {[%clk 0:02:30.7]} 17. Rad1 {[%clk 0:02:04.2]} 17... Bc3 {[%clk
0:02:30.9]} 18. Rf1 {[%clk 0:02:03.7]} 18... Rfe8 {[%clk 0:02:30.7]} 19. Bf3
{[%clk 0:02:04]} 19... Rab8 {[%clk 0:02:27.5]} 20. Rd3 {[%clk 0:02:04.3]} 20...
Bb4 {[%clk 0:02:25.6]} 21. Rfd1 {[%clk 0:02:03.1]} 21... Kg7 {[%clk 0:02:24.5]}
22. Kf1 {[%clk 0:02:03.3]} 22... a6 {[%clk 0:02:13.9]} 23. a4 {[%clk 0:02:01.8]}
23... Bc5 {[%clk 0:02:12.4]} 24. Re1 {[%clk 0:01:57.6]} 24... Rxe1+ {[%clk
0:01:59.5]} 25. Kxe1 {[%clk 0:01:58.5]} 25... b5 {[%clk 0:01:59.8]} 26. axb5
{[%clk 0:01:57.3]} 26... axb5 {[%clk 0:02:00.7]} 27. Bd5 {[%clk 0:01:49.5]}
27... bxc4 {[%clk 0:01:58.5]} 28. bxc4 {[%clk 0:01:46.9]} 28... Rb2 {[%clk
0:01:56.1]} 29. Rf3 {[%clk 0:01:46.2]} 29... f5 {[%clk 0:01:50]} 30. g4 {[%clk
0:01:46.1]} 30... Kf6 {[%clk 0:01:31.8]} 31. Kf1 {[%clk 0:01:45.3]} 31... Ke5
{[%clk 0:01:22.5]} 32. Kg2 {[%clk 0:01:44.7]} 32... f4 {[%clk 0:01:14.4]} 33. h4
{[%clk 0:01:44.4]} 33... h6 {[%clk 0:01:11.6]} 34. Kg1 {[%clk 0:01:41.5]} 34...
g5 {[%clk 0:01:09]} 35. h5 {[%clk 0:01:36.7]} 35... Rc2 {[%clk 0:01:01.5]} 36.
Kg2 {[%clk 0:01:36.1]} 36... Kf6 {[%clk 0:00:55.3]} 37. Kg1 {[%clk 0:01:35.4]}
37... Ke5 {[%clk 0:00:49.2]} 38. Kg2 {[%clk 0:01:35.7]} 38... Kd4 {[%clk
0:00:49.4]} 39. Rb3 {[%clk 0:01:24]} 39... Bb6 {[%clk 0:00:45.6]} 40. Ra3 {[%clk
0:01:16.8]} 40... Kc5 {[%clk 0:00:39.1]} 41. Ra8 {[%clk 0:01:07.3]} 41... Kb4
{[%clk 0:00:30.6]} 42. Kf3 {[%clk 0:01:03]} 42... Rxf2+ {[%clk 0:00:29]} 43. Ke4
{[%clk 0:01:03.9]} 43... f3 {[%clk 0:00:20.8]} 44. Rf8 {[%clk 0:01:02.1]} 44...
Re2+ {[%clk 0:00:20.9]} 45. Kxf3 {[%clk 0:01:01]} 45... Rf2+ {[%clk 0:00:21.1]}
0-1

[Event "*** Titled Tuesday Blitz"]
[Site "Chess.com"]
[Date "2020.12.01"]
[Round "2"]
[White "PlotnikovPavel"]
[Black "Rud_Makarian"]
[Result "0-1"]
[WhiteElo "2473"]
[BlackElo "2712"]
[TimeControl "180+1"]
[EndTime "10:16:57 PST"]
[Termination "Rud_Makarian won by checkmate"]

1. e4 {[%clk 0:03:00.2]} 1... e5 {[%clk 0:02:59.3]} 2. Nf3 {[%clk 0:02:57.8]}
2... Nc6 {[%clk 0:02:59.2]} 3. Bc4 {[%clk 0:02:57.2]} 3... Bc5 {[%clk
0:02:58.5]} 4. O-O {[%clk 0:02:56.5]} 4... Nf6 {[%clk 0:02:57.6]} 5. d3 {[%clk
0:02:56.6]} 5... d6 {[%clk 0:02:57.1]} 6. c3 {[%clk 0:02:56.3]} 6... h6 {[%clk
0:02:56.1]} 7. Bb3 {[%clk 0:02:55.9]} 7... a6 {[%clk 0:02:56.1]} 8. Nbd2 {[%clk
0:02:55.2]} 8... Ba7 {[%clk 0:02:56.1]} 9. Re1 {[%clk 0:02:54.8]} 9... Ng4
{[%clk 0:02:55.3]} 10. Re2 {[%clk 0:02:54.7]} 10... Nf6 {[%clk 0:02:55.9]} 11.
Nc4 {[%clk 0:02:52.6]} 11... Nh5 {[%clk 0:02:48]} 12. d4 {[%clk 0:02:48]} 12...
Bg4 {[%clk 0:02:41.1]} 13. Re1 {[%clk 0:02:46]} 13... Qf6 {[%clk 0:02:38.9]} 14.
d5 {[%clk 0:02:31.9]} 14... Bxf3 {[%clk 0:02:29.5]} 15. Qxf3 {[%clk 0:02:30.9]}
15... Qxf3 {[%clk 0:02:29.6]} 16. gxf3 {[%clk 0:02:31.8]} 16... Ne7 {[%clk
0:02:28.6]} 17. Be3 {[%clk 0:02:31.4]} 17... Ng6 {[%clk 0:02:17.1]} 18. Na5
{[%clk 0:02:25.2]} 18... Ke7 {[%clk 0:02:01.4]} 19. Nxb7 {[%clk 0:02:15.1]}
19... Bb6 {[%clk 0:01:55.7]} 20. Ba4 {[%clk 0:02:10.2]} 20... Ra7 {[%clk
0:01:53.3]} 21. Bc6 {[%clk 0:02:10]} 21... Rb8 {[%clk 0:01:53]} 22. a4 {[%clk
0:01:50.8]} 22... Raxb7 {[%clk 0:01:51.8]} 23. Bxb7 {[%clk 0:01:50.3]} 23...
Rxb7 {[%clk 0:01:52.7]} 24. Re2 {[%clk 0:01:49.5]} 24... Nhf4 {[%clk 0:01:51.6]}
25. Rd2 {[%clk 0:01:47.8]} 25... Nh4 {[%clk 0:01:50.8]} 26. Bxf4 {[%clk
0:01:28.5]} 26... exf4 {[%clk 0:01:51.7]} 27. Rd3 {[%clk 0:01:27.4]} 27... Ng6
{[%clk 0:01:48.2]} 28. Kg2 {[%clk 0:01:23.3]} 28... Ne5 {[%clk 0:01:49]} 29. Rd2
{[%clk 0:01:21.4]} 29... g5 {[%clk 0:01:45.6]} 30. b4 {[%clk 0:01:17]} 30... Rb8
{[%clk 0:01:45.9]} 31. h3 {[%clk 0:01:03.9]} 31... h5 {[%clk 0:01:45.3]} 32. Rc2
{[%clk 0:01:00.9]} 32... Nc4 {[%clk 0:01:35]} 33. Kf1 {[%clk 0:00:41.5]} 33...
Rg8 {[%clk 0:01:33.4]} 34. Ke2 {[%clk 0:00:40.8]} 34... g4 {[%clk 0:01:32.9]}
35. hxg4 {[%clk 0:00:32.4]} 35... hxg4 {[%clk 0:01:33.8]} 36. fxg4 {[%clk
0:00:31.6]} 36... Rxg4 {[%clk 0:01:34.7]} 37. Kf3 {[%clk 0:00:32]} 37... Ne5+
{[%clk 0:01:34.2]} 38. Ke2 {[%clk 0:00:31.3]} 38... f3+ {[%clk 0:01:35.1]} 39.
Kd2 {[%clk 0:00:29.9]} 39... Rxe4 {[%clk 0:01:32.9]} 40. Re1 {[%clk 0:00:14.2]}
40... f5 {[%clk 0:01:22.1]} 41. c4 {[%clk 0:00:08.6]} 41... Bxf2 {[%clk
0:01:21.4]} 42. Rf1 {[%clk 0:00:04.8]} 42... Be3+ {[%clk 0:01:19.8]} 43. Kd1
{[%clk 0:00:03.4]} 43... Rd4+ {[%clk 0:01:17.9]} 44. Ke1 {[%clk 0:00:03.9]}
44... Nd3+ {[%clk 0:01:17]} 45. Kd1 {[%clk 0:00:03.9]} 45... Nf2+ {[%clk
0:01:16.6]} 46. Ke1 {[%clk 0:00:03]} 46... Rd1# {[%clk 0:01:17.5]} 0-1

[Event "*** Titled Tuesday Blitz"]
[Site "Chess.com"]
[Date "2020.12.01"]
[Round "2"]
[White "Korchmar_Vasiliy"]
[Black "PetrolulSah"]
[Result "0-1"]
[WhiteElo "2590"]
[BlackElo "2222"]
[TimeControl "180+1"]
[EndTime "10:16:57 PST"]
[Termination "PetrolulSah won on time"]

1. e4 {[%clk 0:03:00.1]} 1... e5 {[%clk 0:02:57.6]} 2. Nf3 {[%clk 0:02:59.9]}
2... Nc6 {[%clk 0:02:57.8]} 3. Nc3 {[%clk 0:02:59.8]} 3... Nf6 {[%clk
0:02:57.4]} 4. Bb5 {[%clk 0:02:59]} 4... Bb4 {[%clk 0:02:52.2]} 5. O-O {[%clk
0:02:57.7]} 5... O-O {[%clk 0:02:51.7]} 6. d3 {[%clk 0:02:58.3]} 6... d6 {[%clk
0:02:47.9]} 7. Bg5 {[%clk 0:02:56.9]} 7... Bxc3 {[%clk 0:02:46.5]} 8. bxc3
{[%clk 0:02:57.8]} 8... Bg4 {[%clk 0:02:44.7]} 9. h3 {[%clk 0:02:55.3]} 9... Bh5
{[%clk 0:02:44.7]} 10. g4 {[%clk 0:02:54.2]} 10... Bg6 {[%clk 0:02:43.7]} 11.
Rb1 {[%clk 0:01:52.9]} 11... a6 {[%clk 0:02:40.4]} 12. Bxc6 {[%clk 0:01:49.3]}
12... bxc6 {[%clk 0:02:40.4]} 13. Re1 {[%clk 0:01:37.7]} 13... Qd7 {[%clk
0:02:26.9]} 14. Bxf6 {[%clk 0:01:36.9]} 14... gxf6 {[%clk 0:02:26.9]} 15. Qe2
{[%clk 0:01:12.1]} 15... h5 {[%clk 0:02:17.1]} 16. Nh4 {[%clk 0:01:04.3]} 16...
hxg4 {[%clk 0:02:16.5]} 17. hxg4 {[%clk 0:01:05.2]} 17... Kg7 {[%clk 0:02:16]}
18. Ng2 {[%clk 0:00:59.5]} 18... Rh8 {[%clk 0:02:12.8]} 19. Qf3 {[%clk
0:00:56.4]} 19... Rh6 {[%clk 0:02:03.9]} 20. Qe3 {[%clk 0:00:25.5]} 20... Rah8
{[%clk 0:02:01.5]} 21. f3 {[%clk 0:00:24.7]} 21... Rh3 {[%clk 0:01:50.1]} 22.
Kf2 {[%clk 0:00:23.6]} 22... d5 {[%clk 0:01:44.7]} 23. Rb7 {[%clk 0:00:14.2]}
23... dxe4 {[%clk 0:01:37.3]} 24. dxe4 {[%clk 0:00:13.5]} 24... Rh1 {[%clk
0:01:32.7]} 25. Rbb1 {[%clk 0:00:11.4]} 25... R1h2 {[%clk 0:01:29]} 26. Rg1
{[%clk 0:00:04.9]} 26... R8h3 {[%clk 0:01:28.2]} 27. Rbd1 {[%clk 0:00:03.8]}
27... Qe6 {[%clk 0:01:26.7]} 28. Rd2 {[%clk 0:00:02.1]} 28... Qc4 {[%clk
0:01:18.7]} 29. g5 {[%clk 0:00:02.1]} 29... Qxa2 {[%clk 0:00:56.9]} 30. gxf6+
{[%clk 0:00:02.2]} 30... Kxf6 {[%clk 0:00:57.1]} 31. Ke2 {[%clk 0:00:01.6]}
31... Rg3 {[%clk 0:00:49]} 0-1

[Event "*** Titled Tuesday Blitz"]
[Site "Chess.com"]
[Date "2020.12.01"]
[Round "2"]
[White "tigra"]
[Black "ehrenfeld"]
[Result "0-1"]
[WhiteElo "2772"]
[BlackElo "2516"]
[TimeControl "180+1"]
[EndTime "10:16:58 PST"]
[Termination "ehrenfeld won by checkmate"]

1. e4 {[%clk 0:03:00.9]} 1... d6 {[%clk 0:02:58.7]} 2. d4 {[%clk 0:02:53.2]}
2... g6 {[%clk 0:02:58.8]} 3. Nd2 {[%clk 0:02:51.8]} 3... Bg7 {[%clk 0:02:58.4]}
4. c3 {[%clk 0:02:52]} 4... Nf6 {[%clk 0:02:56.8]} 5. Bd3 {[%clk 0:02:52]} 5...
O-O {[%clk 0:02:55.5]} 6. Ngf3 {[%clk 0:02:49.3]} 6... Nc6 {[%clk 0:02:52.5]} 7.
Nf1 {[%clk 0:02:48.2]} 7... e5 {[%clk 0:02:51.2]} 8. d5 {[%clk 0:02:48.1]} 8...
Ne7 {[%clk 0:02:47.7]} 9. c4 {[%clk 0:02:47.6]} 9... h6 {[%clk 0:02:45.9]} 10.
h3 {[%clk 0:02:46.9]} 10... Nd7 {[%clk 0:02:42.9]} 11. g4 {[%clk 0:02:46.8]}
11... Nc5 {[%clk 0:02:37]} 12. Bc2 {[%clk 0:02:46.7]} 12... f5 {[%clk
0:02:36.3]} 13. gxf5 {[%clk 0:02:47]} 13... gxf5 {[%clk 0:02:35.8]} 14. Rg1
{[%clk 0:02:41.3]} 14... Kh8 {[%clk 0:02:32.7]} 15. Nh4 {[%clk 0:02:26.8]} 15...
fxe4 {[%clk 0:02:08.4]} 16. Bxh6 {[%clk 0:02:18.4]} 16... Bxh6 {[%clk
0:01:53.2]} 17. Qh5 {[%clk 0:02:17.9]} 17... Rf6 {[%clk 0:01:50.1]} 18. Ng6+
{[%clk 0:02:17.4]} 18... Kh7 {[%clk 0:01:33.6]} 19. Nxe7 {[%clk 0:02:15.5]}
19... Qxe7 {[%clk 0:01:32.7]} 20. Ng3 {[%clk 0:02:15.8]} 20... Qf7 {[%clk
0:00:49.3]} 21. Nxe4 {[%clk 0:02:13.4]} 21... Nxe4 {[%clk 0:00:39.2]} 22. Bxe4+
{[%clk 0:02:14.3]} 22... Bf5 {[%clk 0:00:37.6]} 23. Qe2 {[%clk 0:02:08.5]} 23...
Bxe4 {[%clk 0:00:35.4]} 24. Qxe4+ {[%clk 0:02:09.4]} 24... Kh8 {[%clk
0:00:35.6]} 25. Qh4 {[%clk 0:02:09.8]} 25... Rf8 {[%clk 0:00:33.3]} 26. f4
{[%clk 0:02:06.2]} 26... Qh7 {[%clk 0:00:32.1]} 27. Rg4 {[%clk 0:01:49.1]} 27...
Rxf4 {[%clk 0:00:30.6]} 28. Rxf4 {[%clk 0:01:49.1]} 28... Rxf4 {[%clk
0:00:28.9]} 29. Qd8+ {[%clk 0:01:48]} 29... Qg8 {[%clk 0:00:29]} 30. Qxg8+
{[%clk 0:01:44.2]} 30... Kxg8 {[%clk 0:00:28.9]} 31. b3 {[%clk 0:01:45.1]} 31...
Rf3 {[%clk 0:00:25.6]} 32. h4 {[%clk 0:01:40.7]} 32... Rh3 {[%clk 0:00:24.6]}
33. Ke2 {[%clk 0:01:41.1]} 33... Rxh4 {[%clk 0:00:23.7]} 34. Rf1 {[%clk
0:01:37.6]} 34... Kg7 {[%clk 0:00:23.6]} 35. Kd3 {[%clk 0:01:36.4]} 35... Bf4
{[%clk 0:00:23.4]} 36. Rg1+ {[%clk 0:01:35.7]} 36... Kf6 {[%clk 0:00:23.2]} 37.
Rg8 {[%clk 0:01:35.4]} 37... Rh2 {[%clk 0:00:22.8]} 38. a4 {[%clk 0:01:34.7]}
38... a5 {[%clk 0:00:22.2]} 39. Rf8+ {[%clk 0:01:32.5]} 39... Kg5 {[%clk
0:00:21.7]} 40. Rf7 {[%clk 0:01:32.2]} 40... Kg4 {[%clk 0:00:21.7]} 41. c5
{[%clk 0:01:28.5]} 41... Kf3 {[%clk 0:00:21.1]} 42. c6 {[%clk 0:01:25.3]} 42...
bxc6 {[%clk 0:00:20.5]} 43. dxc6 {[%clk 0:01:26.2]} 43... e4+ {[%clk 0:00:21.1]}
44. Kc4 {[%clk 0:01:27]} 44... e3 {[%clk 0:00:20.8]} 45. Kb5 {[%clk 0:01:25.8]}
45... e2 {[%clk 0:00:20]} 46. Rxc7 {[%clk 0:01:25.7]} 46... e1=Q {[%clk
0:00:19.8]} 47. Ka6 {[%clk 0:01:26.4]} 47... Qb4 {[%clk 0:00:19]} 48. Rb7 {[%clk
0:01:22.9]} 48... Qc5 {[%clk 0:00:16.8]} 49. c7 {[%clk 0:01:22.9]} 49... Rh8
{[%clk 0:00:16]} 50. Rb8 {[%clk 0:01:21.8]} 50... Qc6+ {[%clk 0:00:15]} 51. Ka7
{[%clk 0:01:22]} 51... Qxc7+ {[%clk 0:00:15.5]} 52. Ka6 {[%clk 0:01:22.4]} 52...
Qxb8 {[%clk 0:00:15.3]} 53. b4 {[%clk 0:01:23.2]} 53... Qxb4 {[%clk 0:00:14.8]}
54. Ka7 {[%clk 0:01:23.2]} 54... Be3+ {[%clk 0:00:15.1]} 55. Ka6 {[%clk
0:01:23.5]} 55... Qb6# {[%clk 0:00:15.6]} 0-1